[Event "Late-Titled-Tuesday-Blitz-April-23-2024"]
[Site "Chess.com"]
[Date "2024.04.23"]
[Round "10"]
[White "Ajedrez_con_German"]
[Black "Smoking_Crow"]
[Result "1/2-1/2"]
[WhiteElo "2644"]
[BlackElo "2607"]
[TimeControl "180+1"]
[EndTime "15:59:15 PDT"]
[Termination "Game drawn by repetition"]

1. a3 {[%clk 0:02:53.9]} 1... h5 {[%clk 0:02:58.4]} 2. e3 {[%clk 0:02:53.2]}
2... h4 {[%clk 0:02:58.3]} 3. h3 {[%clk 0:02:53.2]} 3... e5 {[%clk 0:02:57.7]}
4. d4 {[%clk 0:02:53.3]} 4... exd4 {[%clk 0:02:57.5]} 5. exd4 {[%clk 0:02:53.7]}
5... d5 {[%clk 0:02:57.7]} 6. Nf3 {[%clk 0:02:53.9]} 6... Be7 {[%clk 0:02:57.1]}
7. c4 {[%clk 0:02:54.2]} 7... Be6 {[%clk 0:02:55.4]} 8. cxd5 {[%clk 0:02:52.5]}
8... Bxd5 {[%clk 0:02:54.6]} 9. Nc3 {[%clk 0:02:52.9]} 9... Nf6 {[%clk
0:02:53.5]} 10. Nxd5 {[%clk 0:02:51.5]} 10... Qxd5 {[%clk 0:02:53]} 11. Be3
{[%clk 0:02:49.6]} 11... Nc6 {[%clk 0:02:52.2]} 12. Rc1 {[%clk 0:02:48.8]} 12...
Qd7 {[%clk 0:02:47.7]} 13. Bb5 {[%clk 0:02:44.9]} 13... Bd6 {[%clk 0:02:32.5]}
14. O-O {[%clk 0:02:27.6]} 14... Nd5 {[%clk 0:02:24.9]} 15. Qc2 {[%clk
0:02:20.4]} 15... Nxe3 {[%clk 0:02:14.5]} 16. fxe3 {[%clk 0:02:20.5]} 16... O-O
{[%clk 0:02:14.6]} 17. d5 {[%clk 0:02:12.7]} 17... Qe7 {[%clk 0:02:11.8]} 18.
dxc6 {[%clk 0:02:10.3]} 18... Qxe3+ {[%clk 0:02:11.2]} 19. Kh1 {[%clk
0:02:08.6]} 19... bxc6 {[%clk 0:02:12.1]} 20. Bxc6 {[%clk 0:02:04.5]} 20... Rab8
{[%clk 0:02:12.7]} 21. Qe4 {[%clk 0:01:42.8]} 21... Qh6 {[%clk 0:02:00.6]} 22.
Qxh4 {[%clk 0:01:37.9]} 22... Qxh4 {[%clk 0:01:56.6]} 23. Nxh4 {[%clk
0:01:38.2]} 23... Rxb2 {[%clk 0:01:56.9]} 24. a4 {[%clk 0:01:36.5]} 24... g6
{[%clk 0:01:57.2]} 25. Nf3 {[%clk 0:01:29.6]} 25... Rfb8 {[%clk 0:01:55.6]} 26.
Ng5 {[%clk 0:01:23.5]} 26... f5 {[%clk 0:01:55.2]} 27. Bd5+ {[%clk 0:01:18.6]}
27... Kg7 {[%clk 0:01:55.1]} 28. Ne6+ {[%clk 0:01:18.2]} 28... Kf6 {[%clk
0:01:54.8]} 29. Nxc7 {[%clk 0:01:18.3]} 29... R8b4 {[%clk 0:01:49.1]} 30. Nb5
{[%clk 0:01:16.2]} 30... Bf4 {[%clk 0:01:46.6]} 31. Ra1 {[%clk 0:01:09.5]} 31...
a6 {[%clk 0:01:46.3]} 32. Nc3 {[%clk 0:00:59.7]} 32... Be5 {[%clk 0:01:43.1]}
33. Rac1 {[%clk 0:00:56.1]} 33... Kg7 {[%clk 0:01:14.4]} 34. Bf3 {[%clk
0:00:54.4]} 34... Rd2 {[%clk 0:01:07.7]} 35. Nd5 {[%clk 0:00:46.7]} 35... Rxa4
{[%clk 0:01:03.9]} 36. Rc6 {[%clk 0:00:44.1]} 36... Rad4 {[%clk 0:00:59.9]} 37.
Rxa6 {[%clk 0:00:34.2]} 37... Rxd5 {[%clk 0:00:59.7]} 38. Bxd5 {[%clk
0:00:35.1]} 38... Rxd5 {[%clk 0:01:00.1]} 39. Ra2 {[%clk 0:00:33.5]} 39... Bg3
{[%clk 0:00:59.8]} 40. Ra3 {[%clk 0:00:33.4]} 40... f4 {[%clk 0:00:59.5]} 41.
Raf3 {[%clk 0:00:31.9]} 41... Kh6 {[%clk 0:00:59.2]} 42. Rxf4 {[%clk 0:00:30.1]}
42... Bxf4 {[%clk 0:00:59.1]} 43. Rxf4 {[%clk 0:00:31]} 43... Kg5 {[%clk
0:00:59.3]} 44. Rg4+ {[%clk 0:00:31.1]} 44... Kh5 {[%clk 0:00:59.3]} 45. Kh2
{[%clk 0:00:32]} 45... Rd3 {[%clk 0:00:59.1]} 46. Re4 {[%clk 0:00:32.1]} 46...
Rc3 {[%clk 0:00:58.2]} 47. Rf4 {[%clk 0:00:32.4]} 47... Rd3 {[%clk 0:00:58.5]}
48. Rf3 {[%clk 0:00:32.8]} 48... Rd4 {[%clk 0:00:58.8]} 49. Kg3 {[%clk
0:00:33.3]} 49... Rd5 {[%clk 0:00:59.1]} 50. Re3 {[%clk 0:00:33.7]} 50... Rc5
{[%clk 0:00:59.4]} 51. Kf3 {[%clk 0:00:33.1]} 51... Rc4 {[%clk 0:00:58.9]} 52.
Re8 {[%clk 0:00:26.6]} 52... Rc3+ {[%clk 0:00:58.5]} 53. Kf2 {[%clk 0:00:24.8]}
53... Rc2+ {[%clk 0:00:58.9]} 54. Kg3 {[%clk 0:00:25.4]} 54... Rc3+ {[%clk
0:00:59.3]} 55. Kh2 {[%clk 0:00:25.7]} 55... Kg5 {[%clk 0:00:58.3]} 56. Re5+
{[%clk 0:00:25.5]} 56... Kh6 {[%clk 0:00:55.7]} 57. Re4 {[%clk 0:00:24.7]} 57...
Kg5 {[%clk 0:00:55.4]} 58. Rg4+ {[%clk 0:00:24.5]} 58... Kh5 {[%clk 0:00:55.5]}
59. Rg3 {[%clk 0:00:25.4]} 59... Rc2 {[%clk 0:00:54.7]} 60. Rf3 {[%clk
0:00:25.5]} 60... Rc4 {[%clk 0:00:53]} 61. Re3 {[%clk 0:00:25.6]} 61... Kg5
{[%clk 0:00:52.6]} 62. Kg3 {[%clk 0:00:26]} 62... Rb4 {[%clk 0:00:52.3]} 63. Ra3
{[%clk 0:00:26.1]} 63... Rc4 {[%clk 0:00:52.3]} 64. Ra5+ {[%clk 0:00:26]} 64...
Kh6 {[%clk 0:00:52.4]} 65. h4 {[%clk 0:00:24.8]} 65... Rc3+ {[%clk 0:00:52.3]}
66. Kg4 {[%clk 0:00:24.7]} 66... Rc4+ {[%clk 0:00:52.7]} 67. Kh3 {[%clk
0:00:24.8]} 67... Rc3+ {[%clk 0:00:53.3]} 68. g3 {[%clk 0:00:25]} 68... Rc4
{[%clk 0:00:53]} 69. Ra6 {[%clk 0:00:23]} 69... Rc3 {[%clk 0:00:52.5]} 70. Ra8
{[%clk 0:00:22.8]} 70... Rc4 {[%clk 0:00:52.4]} 71. Rd8 {[%clk 0:00:22.6]} 71...
Rc3 {[%clk 0:00:52.3]} 72. Rd4 {[%clk 0:00:22.9]} 72... Rc5 {[%clk 0:00:52.3]}
73. Kg4 {[%clk 0:00:23.3]} 73... Rb5 {[%clk 0:00:51.9]} 74. Rf4 {[%clk
0:00:23.5]} 74... Rc5 {[%clk 0:00:52.2]} 75. Kh3 {[%clk 0:00:22.2]} 75... Rb5
{[%clk 0:00:52.6]} 76. Rf3 {[%clk 0:00:22.6]} 76... Rc5 {[%clk 0:00:53]} 77. g4
{[%clk 0:00:23]} 77... Rb5 {[%clk 0:00:52.2]} 78. Kg3 {[%clk 0:00:23.4]} 78...
Rc5 {[%clk 0:00:52.6]} 79. Rb3 {[%clk 0:00:23.6]} 79... Ra5 {[%clk 0:00:52.6]}
80. Re3 {[%clk 0:00:21.1]} 80... Rb5 {[%clk 0:00:48.6]} 81. Kf4 {[%clk
0:00:21.4]} 81... Rb4+ {[%clk 0:00:47.7]} 82. Re4 {[%clk 0:00:21.7]} 82... Rb5
{[%clk 0:00:46.6]} 83. Re6 {[%clk 0:00:15.3]} 83... Rb4+ {[%clk 0:00:46.4]} 84.
Re4 {[%clk 0:00:15]} 84... Rb5 {[%clk 0:00:46.5]} 85. Kf3 {[%clk 0:00:14]} 85...
Rb3+ {[%clk 0:00:46.5]} 86. Re3 {[%clk 0:00:14.6]} 86... Rb5 {[%clk 0:00:46.9]}
87. Kg3 {[%clk 0:00:15.1]} 87... Ra5 {[%clk 0:00:46.8]} 88. Rf3 {[%clk
0:00:15.6]} 88... Rb5 {[%clk 0:00:47.2]} 89. Kh3 {[%clk 0:00:16.1]} 89... Ra5
{[%clk 0:00:47.6]} 90. Rg3 {[%clk 0:00:16.5]} 90... Rb5 {[%clk 0:00:47.1]} 91.
Re3 {[%clk 0:00:16.6]} 91... Ra5 {[%clk 0:00:47.5]} 92. Kg3 {[%clk 0:00:17.1]}
92... Rb5 {[%clk 0:00:47.7]} 93. Ra3 {[%clk 0:00:17.8]} 93... Rc5 {[%clk
0:00:47.8]} 94. Rb3 {[%clk 0:00:17]} 94... Ra5 {[%clk 0:00:48]} 95. Re3 {[%clk
0:00:16.7]} 1/2-1/2

[Event "Late-Titled-Tuesday-Blitz-April-23-2024"]
[Site "Chess.com"]
[Date "2024.04.23"]
[Round "10"]
[White "Arigu07"]
[Black "Vladimir_2020"]
[Result "0-1"]
[WhiteElo "2580"]
[BlackElo "2758"]
[TimeControl "180+1"]
[EndTime "15:59:29 PDT"]
[Termination "Vladimir_2020 won by resignation"]

1. a3 {[%clk 0:03:00.9]} 1... d5 {[%clk 0:02:58.7]} 2. e3 {[%clk 0:03:00.8]}
2... e5 {[%clk 0:02:58.3]} 3. d4 {[%clk 0:03:00.4]} 3... Nd7 {[%clk 0:02:55.4]}
4. c4 {[%clk 0:02:59.4]} 4... exd4 {[%clk 0:02:45.6]} 5. Qxd4 {[%clk 0:02:56.5]}
5... dxc4 {[%clk 0:02:32.2]} 6. Bxc4 {[%clk 0:02:55.9]} 6... Ngf6 {[%clk
0:02:32.3]} 7. Nf3 {[%clk 0:02:55]} 7... Bc5 {[%clk 0:02:31.8]} 8. Qd2 {[%clk
0:02:54.4]} 8... O-O {[%clk 0:02:30.9]} 9. b4 {[%clk 0:02:51.8]} 9... Bd6 {[%clk
0:02:31]} 10. Bb2 {[%clk 0:02:50.9]} 10... Qe7 {[%clk 0:02:24.8]} 11. Nc3 {[%clk
0:02:48.8]} 11... Nb6 {[%clk 0:02:23.8]} 12. Bd3 {[%clk 0:02:46.4]} 12... Be6
{[%clk 0:02:20.4]} 13. Qc2 {[%clk 0:02:44.7]} 13... Rad8 {[%clk 0:02:10.2]} 14.
O-O {[%clk 0:02:41.5]} 14... c6 {[%clk 0:02:09.8]} 15. Nd4 {[%clk 0:02:39.3]}
15... Bc8 {[%clk 0:02:03.9]} 16. h3 {[%clk 0:02:36.2]} 16... g6 {[%clk
0:02:03.2]} 17. Rad1 {[%clk 0:02:15.5]} 17... Rfe8 {[%clk 0:02:01]} 18. Rfe1
{[%clk 0:02:14.1]} 18... Bb8 {[%clk 0:02:00]} 19. Nce2 {[%clk 0:02:09.3]} 19...
Nh5 {[%clk 0:01:42.2]} 20. Nf3 {[%clk 0:02:04.2]} 20... Nd7 {[%clk 0:01:21.4]}
21. Nf4 {[%clk 0:01:50.9]} 21... Ng7 {[%clk 0:01:09.1]} 22. Bc4 {[%clk
0:01:45.6]} 22... Ne5 {[%clk 0:01:04.7]} 23. Nxe5 {[%clk 0:01:35.4]} 23... Bxe5
{[%clk 0:01:03.8]} 24. Bxe5 {[%clk 0:01:31]} 24... Qxe5 {[%clk 0:01:03.8]} 25.
Rxd8 {[%clk 0:01:31.5]} 25... Rxd8 {[%clk 0:01:03.9]} 26. Rd1 {[%clk 0:01:30.1]}
26... Qe7 {[%clk 0:00:58.8]} 27. Rxd8+ {[%clk 0:01:16.9]} 27... Qxd8 {[%clk
0:00:58.1]} 28. Qb3 {[%clk 0:01:13.6]} 28... Qd7 {[%clk 0:00:53.2]} 29. a4
{[%clk 0:01:08.1]} 29... Nf5 {[%clk 0:00:41.5]} 30. a5 {[%clk 0:01:04.6]} 30...
Nd6 {[%clk 0:00:39]} 31. Be2 {[%clk 0:01:03.3]} 31... Ne4 {[%clk 0:00:35.4]} 32.
Nd3 {[%clk 0:00:57.3]} 32... Qd6 {[%clk 0:00:31.3]} 33. Qb2 {[%clk 0:00:42.6]}
33... Bf5 {[%clk 0:00:21.8]} 34. Qe5 {[%clk 0:00:35.5]} 34... Qxe5 {[%clk
0:00:21]} 35. Nxe5 {[%clk 0:00:36.4]} 35... Nc3 {[%clk 0:00:20.5]} 36. Bc4
{[%clk 0:00:35.6]} 36... Be6 {[%clk 0:00:15.3]} 37. Bxe6 {[%clk 0:00:35.6]}
37... fxe6 {[%clk 0:00:15.6]} 38. a6 {[%clk 0:00:34.6]} 38... bxa6 {[%clk
0:00:15.3]} 39. Nxc6 {[%clk 0:00:35.1]} 39... Na2 {[%clk 0:00:14.7]} 40. Kf1
{[%clk 0:00:33.6]} 40... Kf7 {[%clk 0:00:14.8]} 41. Ke2 {[%clk 0:00:33.8]} 41...
Ke8 {[%clk 0:00:14.8]} 42. Kd3 {[%clk 0:00:32.7]} 42... Kd7 {[%clk 0:00:15.1]}
43. Ne5+ {[%clk 0:00:32.9]} 43... Kd6 {[%clk 0:00:15.3]} 44. Nf7+ {[%clk
0:00:31.2]} 44... Ke7 {[%clk 0:00:15.3]} 45. Ng5 {[%clk 0:00:29.9]} 45... h6
{[%clk 0:00:14.4]} 46. Ne4 {[%clk 0:00:28.2]} 46... Nxb4+ {[%clk 0:00:14.4]} 47.
Kc4 {[%clk 0:00:28.7]} 47... Nd5 {[%clk 0:00:14.2]} 48. Nc5 {[%clk 0:00:28]}
48... a5 {[%clk 0:00:14.3]} 49. Ne4 {[%clk 0:00:21.2]} 49... a6 {[%clk
0:00:13.4]} 50. Kb3 {[%clk 0:00:19]} 50... Nb6 {[%clk 0:00:12.8]} 51. Nc5 {[%clk
0:00:19]} 51... Kd6 {[%clk 0:00:12.9]} 52. Nxa6 {[%clk 0:00:19.4]} 52... e5
{[%clk 0:00:10.8]} 53. e4 {[%clk 0:00:15.7]} 53... g5 {[%clk 0:00:09.6]} 54. f3
{[%clk 0:00:14.8]} 54... h5 {[%clk 0:00:08.7]} 55. Kc3 {[%clk 0:00:12.6]} 55...
h4 {[%clk 0:00:08.8]} 56. Kb3 {[%clk 0:00:12.7]} 56... Kc6 {[%clk 0:00:08.9]}
57. Kc3 {[%clk 0:00:11.6]} 57... Nc8 {[%clk 0:00:09.1]} 58. Kc4 {[%clk
0:00:11.6]} 58... Nd6+ {[%clk 0:00:09.1]} 59. Kc3 {[%clk 0:00:12.1]} 59... Nb5+
{[%clk 0:00:09]} 60. Kc4 {[%clk 0:00:12.5]} 60... Nd4 {[%clk 0:00:09.1]} 61. Nc5
{[%clk 0:00:12.8]} 61... Ne2 {[%clk 0:00:09.2]} 62. Nd3 {[%clk 0:00:12.6]} 62...
Kd6 {[%clk 0:00:09.4]} 63. Ne1 {[%clk 0:00:10.3]} 63... Nf4 {[%clk 0:00:09.2]}
64. Kb5 {[%clk 0:00:10.6]} 64... a4 {[%clk 0:00:09.4]} 65. Kxa4 {[%clk
0:00:10.8]} 65... Kc5 {[%clk 0:00:09.9]} 66. Nc2 {[%clk 0:00:06.4]} 66... Nxg2
{[%clk 0:00:09.3]} 67. Kb3 {[%clk 0:00:06.8]} 67... Nf4 {[%clk 0:00:09.5]} 68.
Kc3 {[%clk 0:00:06.9]} 68... Nxh3 {[%clk 0:00:09.9]} 69. Ne3 {[%clk 0:00:07.5]}
69... Ng1 {[%clk 0:00:09.6]} 70. Kd2 {[%clk 0:00:04]} 70... Nxf3+ {[%clk
0:00:09.8]} 71. Ke2 {[%clk 0:00:04.9]} 71... Nd4+ {[%clk 0:00:10]} 72. Kf2
{[%clk 0:00:04.9]} 72... Kd6 {[%clk 0:00:10.3]} 73. Ng4 {[%clk 0:00:04.2]} 73...
Ke6 {[%clk 0:00:10.5]} 74. Kg2 {[%clk 0:00:04.7]} 74... Nc6 {[%clk 0:00:10.1]}
75. Ne3 {[%clk 0:00:04.9]} 75... Nb4 {[%clk 0:00:08.8]} 76. Kh3 {[%clk
0:00:05.1]} 76... Nd3 {[%clk 0:00:07.8]} 77. Kg4 {[%clk 0:00:04.8]} 77... Kf6
{[%clk 0:00:07.6]} 78. Nd5+ {[%clk 0:00:05.1]} 78... Kg6 {[%clk 0:00:07.9]} 79.
Ne7+ {[%clk 0:00:05.6]} 79... Kf7 {[%clk 0:00:08.1]} 80. Nd5 {[%clk 0:00:05.9]}
80... Nf2+ {[%clk 0:00:08.2]} 81. Kxg5 {[%clk 0:00:05.8]} 81... h3 {[%clk
0:00:08.7]} 0-1

[Event "Late-Titled-Tuesday-Blitz-April-23-2024"]
[Site "Chess.com"]
[Date "2024.04.23"]
[Round "10"]
[White "Gravity_Chess"]
[Black "SpeedofLight0"]
[Result "1-0"]
[WhiteElo "2898"]
[BlackElo "3042"]
[TimeControl "180+1"]
[EndTime "15:59:57 PDT"]
[Termination "Gravity_Chess won by checkmate"]

1. b3 {[%clk 0:03:00.9]} 1... d5 {[%clk 0:02:58.6]} 2. Bb2 {[%clk 0:03:01.8]}
2... Bg4 {[%clk 0:02:58.9]} 3. d4 {[%clk 0:03:01.9]} 3... Nc6 {[%clk 0:02:57.5]}
4. h3 {[%clk 0:03:01]} 4... Bh5 {[%clk 0:02:57.1]} 5. Nd2 {[%clk 0:02:59.8]}
5... f6 {[%clk 0:02:56.7]} 6. Ngf3 {[%clk 0:02:59.1]} 6... e6 {[%clk 0:02:56.1]}
7. e3 {[%clk 0:02:58.1]} 7... Bd6 {[%clk 0:02:55.7]} 8. c4 {[%clk 0:02:55]} 8...
Nh6 {[%clk 0:02:51.4]} 9. a3 {[%clk 0:02:32.2]} 9... O-O {[%clk 0:02:50.3]} 10.
Bd3 {[%clk 0:02:30.8]} 10... Qe8 {[%clk 0:02:47.6]} 11. Qc2 {[%clk 0:02:30.6]}
11... Bg6 {[%clk 0:02:45.9]} 12. e4 {[%clk 0:02:08.5]} 12... dxe4 {[%clk
0:02:23.2]} 13. Nxe4 {[%clk 0:02:06.5]} 13... e5 {[%clk 0:02:20]} 14. d5 {[%clk
0:01:58.5]} 14... Nd4 {[%clk 0:02:18.4]} 15. Nxd4 {[%clk 0:01:56.9]} 15... exd4
{[%clk 0:02:19.3]} 16. O-O-O {[%clk 0:01:56.2]} 16... Be5 {[%clk 0:02:06.4]} 17.
g3 {[%clk 0:01:36]} 17... c6 {[%clk 0:02:00.1]} 18. Kb1 {[%clk 0:01:02.6]} 18...
cxd5 {[%clk 0:01:58.7]} 19. cxd5 {[%clk 0:01:03.5]} 19... Rc8 {[%clk 0:01:59.1]}
20. Qe2 {[%clk 0:01:04.1]} 20... Qd7 {[%clk 0:01:47.7]} 21. Rc1 {[%clk
0:00:30.9]} 21... Rfe8 {[%clk 0:01:31]} 22. Ka2 {[%clk 0:00:27.3]} 22... Bd6
{[%clk 0:01:20.4]} 23. Qf3 {[%clk 0:00:23.1]} 23... Nf7 {[%clk 0:01:12.6]} 24.
Bxd4 {[%clk 0:00:14.9]} 24... Be5 {[%clk 0:00:41.3]} 25. Nc5 {[%clk 0:00:12.3]}
25... Qe7 {[%clk 0:00:35.1]} 26. Bxg6 {[%clk 0:00:11.8]} 26... hxg6 {[%clk
0:00:36]} 27. Be3 {[%clk 0:00:11.5]} 27... Bd6 {[%clk 0:00:34.5]} 28. b4 {[%clk
0:00:06.2]} 28... Ne5 {[%clk 0:00:21.6]} 29. Qe2 {[%clk 0:00:06.3]} 29... b6
{[%clk 0:00:16.9]} 30. Nb3 {[%clk 0:00:06.7]} 30... Qd7 {[%clk 0:00:12.8]} 31.
Rhd1 {[%clk 0:00:05.7]} 31... Qa4 {[%clk 0:00:13]} 32. Rxc8 {[%clk 0:00:03.8]}
32... Rxc8 {[%clk 0:00:13.1]} 33. Rc1 {[%clk 0:00:04.2]} 33... Rd8 {[%clk
0:00:12.1]} 34. Qd2 {[%clk 0:00:03.3]} 34... a5 {[%clk 0:00:10.6]} 35. Qc3
{[%clk 0:00:01.9]} 35... Bxb4 {[%clk 0:00:10.6]} 36. Qb2 {[%clk 0:00:02]} 36...
Rxd5 {[%clk 0:00:10.8]} 37. Nd4 {[%clk 0:00:02.2]} 37... Nd3 {[%clk 0:00:07.9]}
38. Rc8+ {[%clk 0:00:01.1]} 38... Kh7 {[%clk 0:00:08]} 39. Qb3 {[%clk
0:00:01.7]} 39... Qd7 {[%clk 0:00:03.8]} 40. Qxd3 {[%clk 0:00:01.6]} 40... Qxc8
{[%clk 0:00:03.4]} 41. axb4 {[%clk 0:00:02.3]} 41... axb4 {[%clk 0:00:03.8]} 42.
Kb2 {[%clk 0:00:02.7]} 42... Rc5 {[%clk 0:00:04]} 43. Nb3 {[%clk 0:00:03.2]}
43... Rc3 {[%clk 0:00:04.2]} 44. Qd4 {[%clk 0:00:03.9]} 44... Rc4 {[%clk
0:00:03.2]} 45. Qd3 {[%clk 0:00:03.8]} 45... Qe6 {[%clk 0:00:03.1]} 46. Bd2
{[%clk 0:00:04.1]} 46... b5 {[%clk 0:00:02.4]} 47. h4 {[%clk 0:00:03.9]} 47...
Qe5+ {[%clk 0:00:02.9]} 48. Kb1 {[%clk 0:00:04]} 48... Qc7 {[%clk 0:00:02.6]}
49. h5 {[%clk 0:00:03.9]} 49... f5 {[%clk 0:00:02.7]} 50. hxg6+ {[%clk
0:00:04.1]} 50... Kxg6 {[%clk 0:00:03.6]} 51. Nd4 {[%clk 0:00:03.8]} 51... Qe5
{[%clk 0:00:04.1]} 52. Nb3 {[%clk 0:00:04]} 52... Rc6 {[%clk 0:00:03.4]} 53. Bc1
{[%clk 0:00:04.1]} 53... Rd6 {[%clk 0:00:03.6]} 54. Qe3 {[%clk 0:00:03.8]} 54...
Qd5 {[%clk 0:00:03.5]} 55. Qg5+ {[%clk 0:00:03.7]} 55... Kf7 {[%clk 0:00:04.1]}
56. Qe3 {[%clk 0:00:04.4]} 56... Rc6 {[%clk 0:00:04.3]} 57. Bb2 {[%clk
0:00:04.5]} 57... Rc3 {[%clk 0:00:04]} 58. Bxc3 {[%clk 0:00:04]} 58... Qxb3+
{[%clk 0:00:04.4]} 59. Bb2 {[%clk 0:00:04.8]} 59... Qd1+ {[%clk 0:00:04.5]} 60.
Ka2 {[%clk 0:00:05.2]} 60... Qa4+ {[%clk 0:00:03.8]} 61. Kb1 {[%clk 0:00:05.8]}
61... Qd1+ {[%clk 0:00:04.5]} 62. Bc1 {[%clk 0:00:06.2]} 62... b3 {[%clk
0:00:04.1]} 63. Qd2 {[%clk 0:00:05.9]} 63... Qf3 {[%clk 0:00:03.8]} 64. Kb2
{[%clk 0:00:06.1]} 64... Kg6 {[%clk 0:00:03.2]} 65. Qe3 {[%clk 0:00:06.5]} 65...
Qg2 {[%clk 0:00:02.2]} 66. Qg5+ {[%clk 0:00:06.3]} 66... Kh7 {[%clk 0:00:02.2]}
67. Qxf5+ {[%clk 0:00:07.2]} 67... Kg8 {[%clk 0:00:02.1]} 68. Kxb3 {[%clk
0:00:07.7]} 68... Qc6 {[%clk 0:00:02.2]} 69. Kb2 {[%clk 0:00:07.9]} 69... Qc4
{[%clk 0:00:02]} 70. Be3 {[%clk 0:00:07.8]} 70... b4 {[%clk 0:00:02.1]} 71. Qc2
{[%clk 0:00:07.7]} 71... Qb5 {[%clk 0:00:01.6]} 72. Qb3+ {[%clk 0:00:08.2]}
72... Kh7 {[%clk 0:00:02.2]} 73. Bd2 {[%clk 0:00:08.7]} 73... Qe5+ {[%clk
0:00:02.1]} 74. Kc2 {[%clk 0:00:07.9]} 74... Qc5+ {[%clk 0:00:02.4]} 75. Kd1
{[%clk 0:00:08.3]} 75... Qxf2 {[%clk 0:00:02.1]} 76. Bxb4 {[%clk 0:00:08.8]}
76... Qf1+ {[%clk 0:00:02.6]} 77. Be1 {[%clk 0:00:09.3]} 77... Qf6 {[%clk
0:00:01.7]} 78. Qe3 {[%clk 0:00:09.7]} 78... Qd6+ {[%clk 0:00:01.7]} 79. Ke2
{[%clk 0:00:10.2]} 79... Qa6+ {[%clk 0:00:02.6]} 80. Qd3+ {[%clk 0:00:10.4]}
80... Qg6 {[%clk 0:00:03.2]} 81. Qxg6+ {[%clk 0:00:10.5]} 81... Kxg6 {[%clk
0:00:04.1]} 82. Kf3 {[%clk 0:00:11.4]} 82... Kf5 {[%clk 0:00:04.7]} 83. Bd2
{[%clk 0:00:11.5]} 83... Ke6 {[%clk 0:00:04.7]} 84. Kg4 {[%clk 0:00:11.9]} 84...
Kf6 {[%clk 0:00:05.6]} 85. Bc3+ {[%clk 0:00:10.6]} 85... Kg6 {[%clk 0:00:06.1]}
86. Kh4 {[%clk 0:00:11.2]} 86... Kh6 {[%clk 0:00:06.1]} 87. g4 {[%clk
0:00:09.5]} 87... g6 {[%clk 0:00:05.1]} 88. g5+ {[%clk 0:00:09.2]} 88... Kh7
{[%clk 0:00:05.7]} 89. Kg4 {[%clk 0:00:10.1]} 89... Kg8 {[%clk 0:00:06.6]} 90.
Kf4 {[%clk 0:00:11]} 90... Kf7 {[%clk 0:00:07.5]} 91. Ke5 {[%clk 0:00:11.8]}
91... Ke7 {[%clk 0:00:08.2]} 92. Bd2 {[%clk 0:00:12]} 92... Kf7 {[%clk
0:00:08.3]} 93. Kd6 {[%clk 0:00:12.6]} 93... Kf8 {[%clk 0:00:08.6]} 94. Ke6
{[%clk 0:00:13.5]} 94... Kg7 {[%clk 0:00:09.5]} 95. Ke7 {[%clk 0:00:14.1]} 95...
Kg8 {[%clk 0:00:10.1]} 96. Kf6 {[%clk 0:00:14.9]} 96... Kh7 {[%clk 0:00:10.8]}
97. Kf7 {[%clk 0:00:15.5]} 97... Kh8 {[%clk 0:00:11.2]} 98. Kxg6 {[%clk
0:00:16.2]} 98... Kg8 {[%clk 0:00:11.8]} 99. Kh6 {[%clk 0:00:17.1]} 99... Kh8
{[%clk 0:00:11.9]} 100. g6 {[%clk 0:00:17.7]} 100... Kg8 {[%clk 0:00:12.8]} 101.
g7 {[%clk 0:00:18.4]} 101... Kf7 {[%clk 0:00:13.3]} 102. Kh7 {[%clk 0:00:19.3]}
102... Ke6 {[%clk 0:00:14]} 103. g8=Q+ {[%clk 0:00:19.7]} 103... Ke5 {[%clk
0:00:14.9]} 104. Qf8 {[%clk 0:00:19.6]} 104... Ke4 {[%clk 0:00:15.8]} 105. Bh6
{[%clk 0:00:18.8]} 105... Kd3 {[%clk 0:00:16.7]} 106. Kg6 {[%clk 0:00:19.3]}
106... Kc4 {[%clk 0:00:17.6]} 107. Qd6 {[%clk 0:00:19.6]} 107... Kb5 {[%clk
0:00:17.8]} 108. Qc7 {[%clk 0:00:19.8]} 108... Kb4 {[%clk 0:00:18.2]} 109. Kf5
{[%clk 0:00:19.9]} 109... Kb3 {[%clk 0:00:19.1]} 110. Ke4 {[%clk 0:00:20.8]}
110... Kb4 {[%clk 0:00:20]} 111. Kd4 {[%clk 0:00:21.2]} 111... Kb5 {[%clk
0:00:20.9]} 112. Qb7+ {[%clk 0:00:21.4]} 112... Ka4 {[%clk 0:00:20.8]} 113. Kc4
{[%clk 0:00:22.3]} 113... Ka3 {[%clk 0:00:21.7]} 114. Qb3# {[%clk 0:00:22.6]}
1-0